[Event "European Women-ch 2023"]
[Site "Petrovac"]
[Date "2023.03.25"]
[Round "7.4"]
[White "Zherebtsova, Alexandra"]
[Black "Aydin, Gulenay"]
[Result "1/2-1/2"]
[Annotator "TA"]
[ECO "E94"]
[WhiteElo "2155"]
[BlackElo "2039"]
[PlyCount "99"]
[EventDate "2023.03.15"]
[EventType "swiss"]
[EventCountry "MNE"]
[SourceTitle "playchess.com"]
[Source "ChessBase"]
[SourceQuality "1"]
[TimeControl "40/5400+30:1800+30"]

{[%evp 15,99,39,34,33,52,51,63,62,64,81,79,70,85,76,72,80,87,77,76,76,78,58,44,40,50,45,51,43,56,56,42,-56,153,146,147,118,123,135,148,150,166,154,145,106,278,285,381,389,393,359,705,708,699,676,945,654,562,37,48,0,0,0,0,0,0,0,8,8,8,0,0,0,0,0,0,0,0,0,0,0,0,0,0,0,0,0]} 1. d4 d6 2. c4 Nf6 3. Nc3 g6 4. e4 Bg7 5. Be2 O-O 6. Nf3 {[%emt 0:03:00]} e5 {[%emt 1:09:36]} 7. O-O {[%emt 0:07:12]} Bg4 {[%emt 0:00:00]} 8. d5 {[%emt 0:01:58]} a5 {[%emt 0:00:00]} 9. h3 {[%emt 0:01:10] E94: King's Indian: Classical: 6 Be2 e5 7 0-0: Various Black 7th moves.} Bxf3 {[%emt 0:00:00]} 10. Bxf3 {[%emt 0:00:30]} Nbd7 {[%emt 0:00:00]} 11. Bg5 {[%emt 0:11:40] White is slightly better.} h6 {[%emt 0:00:00]} 12. Be3 {[%emt 0:01:02]} Kh8 {[%emt 0:00:00]} 13. Qc2 {[%emt 0:04:24] [#]} Ng8 $146 {[%emt 0:00:00]} ({Predecessor:} 13... Qe7 14. Rae1 Rg8 15. g3 Kh7 16. Kh2 Nc5 17. b3 Nfd7 18. a3 a4 19. b4 Nb3 {½-½ Lokvenc,J-Pilnik,H Vienna 5152 1951 (9)}) 14. a3 {[%emt 0:04:07]} f5 {[%emt 0:00:00]} 15. b4 {[%emt 0:03:10]} f4 {[%emt 0:00:00] Hoping for ...axb4.} 16. Bd2 {[%emt 0:00:30]} h5 {[%emt 0:00:00]} 17. Nb5 {[%emt 0:05:50]} b6 {[%emt 0:00:00]} 18. c5 {[%emt 0:09:21][%mdl 64] Deflection} bxc5 {[%emt 0:00:00]} 19. bxa5 {[%emt 0:00:30]} Ndf6 {[%emt 0:00:00]} 20. Be2 {[%emt 0:12:38][%cal Oa5a6]} g5 {[%emt 0:00:00]} 21. f3 {[%emt 0:03:34][%cal Oa5a6]} Nh6 {[%emt 0:00:00]} 22. Kf2 {[%emt 0:04:39]} g4 {[%emt 0:00:00]} 23. Rh1 {[%emt 0:01:12]} (23. hxg4 $14 Nfxg4+ 24. Ke1 (24. fxg4 $2 Qh4+ 25. Kg1 Nxg4 $19)) 23... Qd7 $2 {[%emt 0:02:05]} (23... gxf3 $15 {keeps the upper hand.} 24. Bxf3 Nf7) 24. hxg4 $16 {[%emt 0:01:53]} hxg4 {[%emt 0:00:30]} 25. a4 {[%emt 0:04:27]} Kg8 {[%emt 0:11:19] [#]} 26. a6 $1 {[%emt 0:01:20][%cal Ba5a6,Ba6a7][%mdl 544]} Rfc8 {[%emt 0:09:06]} (26... Nf7 27. a7) 27. a7 {[%emt 0:05:07]} Kf8 {[%emt 0:01:12]} 28. Ba5 {[%emt 0:01:28]} g3+ {[%emt 0:00:42]} 29. Ke1 {[%emt 0:00:30] Active counter play!} c6 $2 {[%emt 0:01:57]} (29... Nhg8 $16 30. Rd1 Ne7) 30. dxc6 $18 {[%emt 0:00:45]} Qxc6 {[%emt 0:00:30]} 31. Bc4 {[%emt 0:01:39]} d5 {[%emt 0:01:06]} 32. exd5 {[%emt 0:01:17]} Nxd5 {[%emt 0:00:30]} (32... Qa6) 33. Bxd5 {[%emt 0:01:00]} Qxd5 {[%emt 0:00:30]} 34. Rd1 {[%emt 0:01:43]} Qb7 {[%emt 0:03:27]} 35. Nd6 {[%emt 0:02:02]} Qxa7 {[%emt 0:00:36] [#] Black is weak on the light squares} 36. Bc3 {[%emt 0:01:00]} (36. Rxh6 $1 $18 {White wants to mate with Qf5+.} Qxa5+ 37. Kf1 Bxh6 38. Qf5+ Kg8 39. Nxc8 Qa6+ 40. Kg1 Qxc8 41. Rd7 (41. Qxe5 $2 {perishes.} Rxa4 42. Qd5+ Kh8 $19) 41... Qxd7 42. Qxd7) 36... Rd8 $14 {[%emt 0:00:42] [#]} 37. Rxh6 {[%emt 0:04:40]} Bxh6 $11 {[%emt 0:00:30] The position is equal.} 38. Bxe5 {[%emt 0:01:32] Strongly threatening Rd5.} Qe7 {[%emt 0:02:15]} (38... Qxa4 $2 {is a self mate.} 39. Qf5+ Kg8 40. Qf7#) 39. Qf5+ {[%emt 0:00:34]} Kg8 {[%emt 0:00:30] White must now prevent ...Bg7.} 40. Kf1 {[%emt 0:01:11] And now Bf6 would win.} Rxa4 {[%emt 0:02:38]} 41. Qg6+ {[%emt 0:04:09]} Bg7 {[%emt 0:00:30]} 42. Re1 {[%emt 0:15:51] Threatening mate with Nf5. Some like it hot} Ra6 {[%emt 0:25:06]} 43. Bxg7 {[%emt 0:02:32]} Qxg7 {[%emt 0:00:42]} (43... Qxd6 $2 {leads to mate.} 44. Bf6+ Kf8 45. Qg7#) 44. Qe6+ {[%emt 0:00:41]} Kh7 {[%emt 0:00:18]} 45. Qf5+ {[%emt 0:02:08]} Kg8 {[%emt 0:00:30]} 46. Qd5+ {[%emt 0:03:40]} Kf8 {[%emt 0:01:33]} 47. Qf5+ {[%emt 0:00:30]} Kg8 {[%emt 0:00:30]} 48. Qe6+ {[%emt 0:00:41]} Kh7 {[%emt 0:00:30]} 49. Qh3+ {[%emt 0:01:52]} Kg8 {[%emt 0:00:30]} 50. Qe6+ {[%emt 0:03:29] Black defended with fortune. An exciting game.   Weighted Error Value: White=0.31/Black=0.25 (precise)} 1/2-1/2

[Event "European Women-ch 2023"]
[Site "Petrovac"]
[Date "2023.03.25"]
[Round "7.5"]
[White "Arabidze, Meri"]
[Black "Garifullina, Leya"]
[Result "1-0"]
[Annotator "TA"]
[ECO "E20"]
[WhiteElo "2433"]
[BlackElo "2372"]
[PlyCount "97"]
[EventDate "2023.03.15"]
[EventType "swiss"]
[EventCountry "MNE"]
[SourceTitle "playchess.com"]
[Source "ChessBase"]
[SourceQuality "1"]
[TimeControl "40/5400+30:1800+30"]

{[%evp 10,97,0,6,33,-6,-12,-8,-1,-14,-11,-13,-13,-19,-19,-12,0,0,8,8,40,0,25,10,38,32,27,38,48,47,42,8,51,0,0,0,0,0,0,0,16,0,0,0,37,50,88,53,67,108,77,4,250,240,269,263,241,268,280,283,280,268,1256,381,849,808,806,731,785,408,562,0,756,698,765,782,740,738,5065,5057,4132,2990,727,677,29987,29988,29988,29989,29989,29990]} 1. d4 {[%emt 0:00:05]} Nf6 {[%emt 0:00:08]} 2. c4 {[%emt 0:00:06]} e6 {[%emt 0:00:06]} 3. Nc3 {[%emt 0:00:06]} Bb4 {[%emt 0:00:20]} 4. f3 {[%emt 0:00:07]} c5 {[%emt 0:00:55]} 5. d5 {[%emt 0:00:06]} d6 {[%emt 0:00:49]} 6. e4 {[%emt 0:00:14]} b5 {[%emt 0:00:20] E20: Nimzo-Indian: 4 g3 and 4 f3.} 7. Nge2 {[%emt 0:00:16]} bxc4 {[%emt 0:00:13]} 8. Nf4 {[%emt 0:00:26]} e5 {[%emt 0:00:15] The position is equal.} 9. Nfe2 {[%emt 0:00:04]} Nbd7 {[%emt 0:00:08]} 10. Ng3 {[%emt 0:00:16]} Nb6 {[%emt 0:00:09]} 11. Be2 {[%emt 0:00:10]} Ng8 {[%emt 0:01:25]} 12. h4 {[%emt 0:00:14][%cal Bh2h4,Bh4h5,Bh5h6][%mdl 32]} Ne7 {[%emt 0:13:24]} 13. h5 {[%emt 0:00:18] [#] Against Ng6} f5 $146 {[%emt 0:02:51]} ({Predecessor:} 13... h6 14. f4 exf4 15. Bxf4 g5 16. hxg6 Nxg6 17. Qd2 Qe7 18. O-O Bd7 19. Bxh6 O-O-O {0-1 Suleymanli,A (2541)-Brkic,A (2621) FIDE Grand Swiss 2021 (10)}) 14. h6 {[%emt 0:09:53]} g6 {[%emt 0:08:47]} 15. f4 {[%emt 0:05:07]} O-O {[%emt 0:05:20] And now ...exf4 would win.} 16. O-O $1 {[%emt 0:02:43]} Bxc3 {[%emt 0:05:26]} (16... Rb8 {is more complex.} 17. fxe5 dxe5 18. Bg5 Bxc3 19. bxc3 Qd6) 17. bxc3 {[%emt 0:00:20]} fxe4 {[%emt 0:03:36]} 18. fxe5 {[%emt 0:10:41]} Nexd5 {[%emt 0:06:04]} (18... Nbxd5 $2 19. Bxc4 dxe5 20. Rxf8+ Kxf8 21. Bg5 $18) (18... dxe5 19. Bg5 Rxf1+ 20. Qxf1 $16) 19. Nxe4 {[%emt 0:23:15]} Bf5 {[%emt 0:03:27]} 20. Bg5 {[%emt 0:05:43]} (20. Nxd6 $5 {[%cal Re2c4]} Nxc3 21. Qd2 Nxe2+ 22. Qxe2 $11) 20... Qd7 {[%emt 0:06:29]} (20... Qe8 {seems wilder.} 21. Nxd6 Qxe5 22. Nxc4 Qg3) 21. Nf6+ {[%emt 0:09:44]} (21. Nxd6 $14 Nxc3 22. Qe1 Nxe2+ 23. Qxe2) 21... Nxf6 $11 {[%emt 0:01:24]} 22. exf6 {[%emt 0:01:10]} Rae8 {[%emt 0:04:38]} 23. Qd2 {[%emt 0:01:32]} d5 {[%emt 0:05:36]} 24. Bf3 {[%emt 0:04:29]} Re6 {[%emt 0:09:05]} 25. Rfd1 {[%emt 0:04:16]} (25. Rad1 $5 {[%cal Ra2a4]}) 25... Qf7 {[%emt 0:04:22]} 26. Qf2 {[%emt 0:03:00]} (26. Bxd5 $2 Nxd5 27. Re1 Bd3 28. Rxe6 Qxe6 $19) 26... Bd3 {[%emt 0:01:34]} 27. Qxc5 {[%emt 0:02:22]} Re5 {[%emt 0:02:20]} 28. Be3 {[%emt 0:02:19] White is more active.} Rc8 {[%emt 0:07:41]} 29. Qd4 {[%emt 0:00:33]} Rce8 {[%emt 0:01:40]} 30. Bf2 {[%emt 0:06:02] This pair of bishops is nice.} ({White should try} 30. Bf4 $16 R5e6 31. Bg5 (31. Bxd5 $2 Nxd5 32. Qxd5 Re1+ 33. Rxe1 Rxe1+ 34. Rxe1 Qxd5 $19)) 30... Rf5 {[%emt 0:02:43] [#] White leaves nothing to chance now.} (30... Qxf6 $11 {and Black is okay.} 31. a4 Be4 32. Bxe4 dxe4) 31. Re1 $1 $18 {[%emt 0:01:50] Threatens to win with Rxe8+.} Be4 {[%emt 0:02:44]} 32. Bxe4 {[%emt 0:01:27]} dxe4 {[%emt 0:00:48]} 33. Rxe4 {[%emt 0:00:29]} Rxe4 {[%emt 0:00:03]} 34. Qxe4 {[%emt 0:00:06] Bxb6 would be deadly.} Rxf6 {[%emt 0:00:10]} 35. Rd1 {[%emt 0:01:22] Rd8+ would kill now.} Qc7 {[%emt 0:01:26] Inhibits Rd8+.} (35... Nd7) 36. Bd4 $2 {[%emt 0:01:42]} (36. Bh4 g5 {[%mdl 64] Decoy} 37. Bxg5 Qc5+ 38. Kh2 Rxh6+ {[%mdl 64] Decoy} 39. Bxh6 Qh5+ 40. Kg3 Qg6+ 41. Qxg6+ {[%mdl 64] Remove Defender} hxg6 42. Rd6) 36... Rf8 {[%emt 0:01:03]} (36... Qd6 37. Re1 (37. Bxf6 Qxd1+ 38. Kh2 Qd6+ 39. Be5 Qe6 $14) 37... Rf5) 37. Qe6+ {[%emt 0:00:18]} Rf7 {[%emt 0:00:25] Black is weak on the dark squares} 38. Re1 {[%emt 0:02:21]} Qf4 {[%emt 0:00:53]} 39. Qe8+ {[%emt 0:02:14]} Rf8 {[%emt 0:00:06]} 40. Qe6+ $40 {[%emt 0:00:00][%mdl 128] Black needs to defend precisely.} Rf7 $1 {[%emt 0:00:00]} 41. a4 {[%emt 0:04:49]} Nd7 {[%emt 0:13:23]} 42. Qxc4 {[%emt 0:02:48]} a5 {[%emt 0:01:59]} 43. Qd5 {[%emt 0:08:58] Intending Re8+ and mate.} Qxh6 {[%emt 0:02:53]} 44. Rf1 {[%emt 0:01:06][%csl Gf1][%cal Rd5f7]} ({Not} 44. Re7 Qc1+ 45. Kh2 Qf4+ 46. g3 Qh6+ 47. Kg1 Qc1+ 48. Kh2 Qh6+ 49. Kg2 Qd2+ 50. Kg1 (50. Kh3 Qh6+ 51. Kg2 Qd2+ 52. Kg1 Qd1+ 53. Kh2 Qd2+ 54. Kh3 Qh6+ 55. Kg2 $11) 50... Qd1+ 51. Kh2 (51. Kg2 Qd2+ 52. Kh3 Qh6+ 53. Kg2 Qd2+ $11) 51... Qd2+ 52. Kg1 (52. Kh3 Qh6+ 53. Kg2 Qd2+ 54. Kg1 Qd1+ 55. Kh2 Qd2+ 56. Kh3 Qh6+ 57. Kg2 $11) 52... Qd1+ 53. Kh2 (53. Kg2 Qd2+ 54. Kh3 Qh6+ 55. Kg2 Qd2+ $11) 53... Qd2+ 54. Kg1 $11 (54. Kh3 Qh6+ 55. Kg2 Qd2+ 56. Kg1 $11)) 44... Qf8 {[%emt 0:00:17]} 45. c4 {[%emt 0:01:17][%cal Bc3c4,Bc4c5,Bc5c6][%mdl 32]} Qe8 {[%emt 0:03:21]} 46. c5 {[%emt 0:00:53] aiming for c6.} ({Less strong is} 46. Qxa5 Rxf1+ 47. Kxf1 Qf7+ 48. Kg1 Qxc4 49. Qd8+ Nf8 $16) 46... Nf8 {[%emt 0:08:56]} 47. Rxf7 {[%emt 0:01:38][%mdl 64] Deflection. White mates.} Qxf7 {[%emt 0:00:06]} 48. Qe5 {[%emt 0:00:12][%csl Gd4][%cal Re5h8]} Qd7 {[%emt 0:00:36] [#]} 49. c6 $1 {[%emt 0:00:11][%mdl 576] Discovered Attack. A cool game by Arabidze.   Weighted Error Value: White=0.55/Black=0.36} 1-0

[Event "European Women-ch 2023"]
[Site "Petrovac"]
[Date "2023.03.25"]
[Round "7.5"]
[White "Schulze, Lara"]
[Black "Badelka, Olga"]
[Result "1-0"]
[Annotator "TA"]
[ECO "C48"]
[WhiteElo "2277"]
[BlackElo "2428"]
[PlyCount "147"]
[EventDate "2023.03.15"]
[EventType "swiss"]
[EventCountry "MNE"]
[SourceTitle "playchess.com"]
[Source "ChessBase"]
[SourceQuality "1"]
[TimeControl "40/5400+30:1800+30"]

{[%evp 9,147,14,10,18,29,11,19,0,30,-1,22,15,37,20,25,0,25,0,0,0,-7,-36,-22,-36,-33,-41,-24,-67,-49,-61,-48,-60,0,-23,8,0,54,43,46,36,49,43,76,74,77,48,77,33,125,122,141,127,125,111,107,93,145,126,147,119,113,60,96,96,181,97,218,50,116,124,119,110,127,67,83,72,64,83,75,26,64,4,105,88,74,86,75,93,115,77,104,106,93,8,8,0,0,0,849,837,812,794,1145,938,2333,2046,2257,2126,1950,1896,3183,2689,1314,2071,2159,2014,2207,2000,2127,2026,1954,1818,1720,1542,1391,1127,2008,1895,29973,29977,29976,29978,29977,29978,29980,29981,29981,29982,29982,29982]} 1. e4 {[%emt 0:00:09]} e5 {[%emt 0:00:02]} 2. Nf3 {[%emt 0:00:08]} Nc6 {[%emt 0:00:05]} 3. Nc3 {[%emt 0:00:07]} Nf6 {[%emt 0:00:06]} 4. Bb5 {[%emt 0:00:13]} Bd6 {[%emt 0:00:43]} 5. O-O {[%emt 0:01:41]} O-O {[%emt 0:00:25]} 6. d3 {[%emt 0:00:26] C48: Four Knights: 4 Bb5, replies other than 4...Bb4.} h6 {[%emt 0:00:25]} 7. a4 {[%emt 0:00:27]} Re8 {[%emt 0:02:45] [#]} 8. a5 $146 {[%emt 0:02:05] The position is equal.} ({Predecessor:} 8. h3 Bf8 9. Re1 a6 10. Bc4 d6 11. Ne2 Be6 12. Ng3 d5 13. exd5 Bxd5 14. b3 Bxf3 15. Qxf3 {½-½ Kollars,D (2622)-Hansen,S (2526) Titled Tuesday intern op 28th Dec blitz 2021 (6)}) 8... Nb4 {[%emt 0:03:56]} (8... a6 $5 {[%cal Ra6b5]} 9. Bxc6 dxc6 $11) 9. Bc4 {[%emt 0:14:29]} Bf8 {[%emt 0:02:07]} (9... c6 {with more complications.} 10. d4 exd4 11. Qxd4 Qe7) 10. Re1 {[%emt 0:07:43]} a6 {[%emt 0:12:58]} 11. Bb3 {[%emt 0:04:42]} d6 {[%emt 0:04:05][%cal Bd7d6,Bd6d5][%mdl 32]} 12. h3 {[%emt 0:08:09]} c5 {[%emt 0:03:07]} 13. Bd2 {[%emt 0:01:52]} Be6 {[%emt 0:00:56]} 14. Bxe6 {[%emt 0:03:47]} Rxe6 {[%emt 0:00:07]} 15. Ne2 {[%emt 0:03:35][%cal Bc3e2,Be2g3,Bg3f5][%mdl 32]} d5 {[%emt 0:02:51]} 16. Ng3 {[%emt 0:03:36]} Nc6 {[%emt 0:04:20]} 17. Nf5 {[%emt 0:13:57]} Qd7 {[%emt 0:03:28]} 18. g4 {[%emt 0:04:27]} dxe4 {[%emt 0:01:28]} 19. dxe4 {[%emt 0:00:19]} Rd8 {[%emt 0:03:07]} 20. c3 {[%emt 0:09:43]} Nh7 {[%emt 0:10:12]} (20... g6 $15 21. Nxh6+ Bxh6 22. Bxh6 Rd6) 21. Qe2 {[%emt 0:04:30]} Qd3 {[%emt 0:08:36]} 22. Kf1 {[%emt 0:03:44]} Nf6 {[%emt 0:02:35]} (22... Qb5 $11) 23. Qxd3 $1 $14 {[%emt 0:02:42]} Rxd3 {[%emt 0:00:01]} 24. Ke2 {[%emt 0:00:23]} Rd7 {[%emt 0:09:35]} 25. Ra4 {[%emt 0:02:12]} h5 {[%emt 0:00:08]} 26. g5 {[%emt 0:01:50]} Ne8 {[%emt 0:00:16]} 27. Bc1 {[%emt 0:03:58][%cal Bd2c1,Bc1e3,Be3b6][%mdl 32]} Be7 {[%emt 0:02:50]} 28. Nxe7+ {[%emt 0:00:57]} Rexe7 {[%emt 0:06:39]} (28... Nxe7 $14 29. Be3 Ng6) 29. Be3 $16 {[%emt 0:00:17]} c4 {[%emt 0:00:04]} 30. Nd2 {[%emt 0:00:41]} Nd6 {[%emt 0:02:44]} 31. Bb6 {[%emt 0:02:08]} (31. Nxc4 Nxc4 32. Rxc4 Nxa5) 31... f6 {[%emt 0:03:42]} 32. Rg1 {[%emt 0:00:45]} Re6 {[%emt 0:01:47]} (32... Kf7 $142) 33. f3 {[%emt 0:00:17]} f5 {[%emt 0:01:59]} 34. exf5 {[%emt 0:00:28]} (34. Nxc4 $6 fxe4 35. fxe4 Nxe4 $11) 34... Nxf5 {[%emt 0:00:01][%cal Oe5e4]} 35. Rxc4 {[%emt 0:00:25]} (35. Ne4 $16) 35... Red6 {[%emt 0:05:48]} 36. Ne4 {[%emt 0:00:01]} Rd3 {[%emt 0:00:43]} (36... Rd5 $16) 37. b4 {[%emt 0:00:32]} ({White should play} 37. g6 $1 $18) 37... h4 {[%emt 0:00:12]} (37... Kh7 $16 {might work better.}) 38. Kf2 $2 {[%emt 0:01:01]} (38. Bf2 $18) 38... Nd6 {[%emt 0:03:32]} (38... Nce7 $1 $14) 39. Nxd6 {[%emt 0:00:15]} Rd2+ {[%emt 0:00:01]} 40. Ke3 $1 {[%emt 0:00:00]} R7xd6 {[%emt 0:00:00]} 41. Re1 {[%emt 0:11:40]} (41. Bd4 $6 Rh2 42. Bc5 Rdd2 $11) ({Better is} 41. Bc5 $1 $16 {[%cal Rc5d6]} R6d3+ 42. Ke4) 41... Kf7 {[%emt 0:08:46]} 42. Re2 {[%emt 0:03:02]} Rd1 {[%emt 0:01:33]} 43. Kf2 {[%emt 0:02:11]} (43. Rxh4 R6d3+ 44. Kf2 Rxc3 $11) (43. Bc5 {feels hotter.} R6d3+ 44. Ke4 Ke6 45. Rc2) 43... R6d3 {[%emt 0:04:19] [#]} 44. Be3 {[%emt 0:03:28]} (44. Rxh4 Rxc3 45. Rhe4 Kg6 $11) (44. Rc2 $1 $16) 44... Kg6 {[%emt 0:01:38]} 45. Rc2 {[%emt 0:03:04]} (45. Rxh4 $14 Rxc3 46. Rh8) 45... Kh5 {[%emt 0:08:33]} (45... Ne7 $11 {remains equal.}) 46. Rc1 {[%emt 0:05:21]} Rxc1 {[%emt 0:00:28]} 47. Bxc1 {[%emt 0:00:01][%mdl 4096] Endgame KRB-KRN} Rd1 {[%emt 0:04:50]} 48. Be3 {[%emt 0:00:06]} Rb1 {[%emt 0:00:36]} 49. Rg4 {[%emt 0:02:30] Black must now prevent g6.} Nd8 {[%emt 0:03:51]} 50. g6 {[%emt 0:03:22] Rg5+ is the strong threat.} Ne6 {[%emt 0:00:04] Prevents Rg5+.} 51. Ke2 {[%emt 0:00:26]} (51. Re4 $16 Kxg6 52. Ke2 (52. Rxe5 Kf6 $16)) 51... Rh1 $1 $11 {[%emt 0:00:32]} 52. Kd3 {[%emt 0:00:55]} Rxh3 {[%emt 0:00:14]} 53. Ke4 {[%emt 0:00:03]} Rg3 $2 {[%emt 0:01:37][%mdl 8192] White stays focused until the end.} (53... Rh2 $11) 54. Rxg3 $18 {[%emt 0:00:51]} (54. Kxe5 $2 {perishes.} Rxf3 55. Re4 h3 $19) 54... hxg3 {[%emt 0:00:01]} 55. Kxe5 {[%emt 0:00:54] KB-KN} Nc7 {[%emt 0:01:52]} 56. c4 {[%emt 0:00:45] Kd6 would be deadly.} g2 {[%emt 0:00:35]} 57. Kd6 {[%emt 0:00:52]} Ne8+ {[%emt 0:00:04]} 58. Kd7 {[%emt 0:00:18]} Nf6+ {[%emt 0:00:04]} 59. Kc7 {[%emt 0:00:12]} Kh4 {[%emt 0:00:06]} 60. Kxb7 {[%emt 0:00:24]} Kg3 {[%emt 0:00:03]} 61. Kxa6 {[%emt 0:00:44]} Kxf3 {[%emt 0:00:04]} 62. Bg1 {[%emt 0:00:13] Strongly threatening Kb5.} Ke2 {[%emt 0:00:26]} 63. Kb5 {[%emt 0:01:03]} Kf1 {[%emt 0:00:05]} 64. Bd4 {[%emt 0:00:33]} Ne4 {[%emt 0:00:30] [#]} 65. a6 $1 {[%emt 0:00:16][%cal Oa6a7] Threatening mate with a7!} (65. Bxg7 $2 {is the wrong capture.} g1=Q 66. c5 Qxg6 $19) 65... Nf2 {[%emt 0:00:03]} 66. a7 {[%emt 0:00:51][%cal Od4f2] Bxf2! would kill now.} (66. Bxg7 $2 g1=Q 67. a7 Qg2 $19) 66... g1=Q {[%emt 0:00:05]} 67. a8=Q {[%emt 0:00:28] Intending Qa1+ and mate. KQB-KQN} (67. a8=B $2 {too greedy.} Qxg6 68. Bxf2 Kxf2 $19) 67... Qg5+ {[%emt 0:00:16]} 68. Qd5 {[%emt 0:00:24]} Qxg6 {[%emt 0:00:07]} 69. Qf3 {[%emt 0:00:45][%csl Gd4][%cal Rf3f2] White mates.} Qe8+ {[%emt 0:01:11]} 70. Ka5 {[%emt 0:00:09][%csl Gd4][%cal Rf3f2]} Qd8+ {[%emt 0:00:42]} 71. Bb6 {[%emt 0:00:06][%csl Gb6][%cal Rf3f2]} Qd2 {[%emt 0:00:31]} 72. Qxf2+ {[%emt 0:00:20]} Qxf2 {[%emt 0:00:02]} 73. Bxf2 {[%emt 0:00:06]} Kxf2 {[%emt 0:00:02]} 74. c5 {[%emt 0:00:07] Weighted Error Value: White=0.25 (precise) /Black=0.31} 1-0

[Event "European Women-ch 2023"]
[Site "Petrovac"]
[Date "2023.03.25"]
[Round "7.5"]
[White "Lomaia, Diana"]
[Black "Ivekovic, Tihana"]
[Result "1/2-1/2"]
[Annotator "TA"]
[ECO "E21"]
[WhiteElo "1950"]
[BlackElo "2132"]
[PlyCount "111"]
[EventDate "2023.03.15"]
[EventType "swiss"]
[EventCountry "MNE"]
[SourceTitle "playchess.com"]
[Source "ChessBase"]
[SourceQuality "1"]
[TimeControl "40/5400+30:1800+30"]

{[%evp 9,110,6,0,-8,10,11,20,12,14,16,10,18,33,33,37,22,26,36,32,46,43,39,45,0,33,27,31,29,31,29,16,3,23,0,0,-5,9,7,4,0,0,0,0,0,0,0,0,0,0,0,0,0,11,13,81,73,98,27,29,25,40,16,16,17,16,18,16,11,8,8,8,8,9,8,11,4,4,4,49,55,70,69,44,47,79,59,69,69,69,69,70,70,95,21,21,21,21,21,21,0,5,0,21]} 1. d4 {[%emt 0:00:02]} Nf6 {[%emt 0:00:04]} 2. c4 {[%emt 0:00:05]} e6 {[%emt 0:00:03]} 3. Nc3 {[%emt 0:00:04]} Bb4 {[%emt 0:00:10]} 4. Nf3 {[%emt 0:00:13]} b6 {[%emt 0:00:05]} 5. Qb3 {[%emt 0:00:30]} c5 {[%emt 0:00:31]} 6. dxc5 {[%emt 0:00:12] E21: Nimzo-Indian: 4 Nf3.} Bxc5 {[%emt 0:00:57]} 7. Bf4 {[%emt 0:00:48]} Nc6 {[%emt 0:02:45]} 8. e3 {[%emt 0:03:31]} O-O {[%emt 0:01:11]} 9. Rd1 {[%emt 0:01:35]} Bb7 {[%emt 0:06:10]} 10. Be2 {[%emt 0:02:22]} Be7 {[%emt 0:09:53]} 11. O-O {[%emt 0:04:02]} Rc8 {[%emt 0:00:56] [#]} 12. Qc2 $146 {[%emt 0:07:24]} ({Predecessor:} 12. Qa4 Na5 13. Nb5 Bxf3 14. gxf3 Nh5 15. Be5 Nc6 16. Nxa7 Nxe5 17. Nxc8 Qxc8 18. f4 Nxf4 19. exf4 {1-0 Orzech,D (2462)-Marszalek,M (2392) Karpacz op 2009 (7)}) 12... Nh5 {[%emt 0:13:20]} 13. Bd6 {[%emt 0:18:19]} Bxd6 {[%emt 0:01:22]} 14. Rxd6 {[%emt 0:00:10]} Qe7 {[%emt 0:00:07]} 15. Rfd1 {[%emt 0:01:33]} Rfd8 {[%emt 0:01:25]} 16. a3 {[%emt 0:03:08]} Nf6 {[%emt 0:00:30]} (16... Na5 $5 {[%cal Ra5c4]}) 17. b4 {[%emt 0:04:30]} Ne8 {[%emt 0:01:08]} 18. R6d2 {[%emt 0:00:59]} d6 {[%emt 0:00:24]} 19. h3 {[%emt 0:11:00]} h6 {[%emt 0:00:43]} 20. Qb3 {[%emt 0:03:41]} Qc7 {[%emt 0:05:15]} 21. Bf1 {[%emt 0:13:53]} Ne7 {[%emt 0:03:03]} 22. e4 {[%emt 0:11:12]} a6 {[%emt 0:00:53][%cal Ob6b5]} 23. Rc2 {[%emt 0:07:18]} Qb8 {[%emt 0:00:28]} 24. Nd4 {[%emt 0:00:36]} Nf6 {[%emt 0:02:18]} 25. f3 {[%emt 0:00:47]} d5 {[%emt 0:03:44]} 26. cxd5 {[%emt 0:01:23]} exd5 {[%emt 0:00:06]} 27. exd5 {[%emt 0:00:48]} Nexd5 {[%emt 0:00:57] [#] aiming for ...Ne3.} 28. Nxd5 {[%emt 0:00:29]} Bxd5 {[%emt 0:01:34]} 29. Rxc8 {[%emt 0:01:01]} Qxc8 {[%emt 0:02:21]} 30. Qc2 {[%emt 0:00:24]} Qxc2 {[%emt 0:00:41]} 31. Nxc2 {[%emt 0:00:03] Black should prevent Ne3.} Rc8 {[%emt 0:03:41]} (31... Ra8 $11) 32. Ne3 $16 {[%emt 0:01:06]} Bb7 {[%emt 0:03:21] [#]} 33. Nc4 {[%emt 0:02:11]} (33. a4 $1 $16) 33... b5 $1 $11 {[%emt 0:01:16]} 34. Nd6 {[%emt 0:00:33][%csl LRb7,LRc8][%cal Od6c8]} Rd8 {[%emt 0:02:18] Hoping for ...Ne8.} 35. Be2 {[%emt 0:00:12]} (35. Rd3 $5 {[%cal Rd6b7]} Bc6 36. Ne4 $14) 35... Bc6 {[%emt 0:00:54]} 36. Nf5 {[%emt 0:00:47]} Rxd1+ {[%emt 0:00:12]} 37. Bxd1 {[%emt 0:00:01][%mdl 4096] Endgame Ne7+ would be deadly. KBN-KBN} Kf8 {[%emt 0:00:18] Repels Ne7} 38. Nd4 {[%emt 0:01:03]} Bd7 {[%emt 0:00:19]} 39. Bb3 {[%emt 0:00:31]} Ke7 {[%emt 0:00:13]} 40. Kf2 {[%emt 0:00:00]} Ne8 {[%emt 0:00:00]} 41. Ke3 {[%emt 0:06:37]} Nd6 {[%emt 0:02:59]} 42. Kd3 {[%emt 0:01:45]} g6 {[%emt 0:02:09]} 43. Bd5 {[%emt 0:01:34]} Kd8 {[%emt 0:01:19]} 44. Nb3 {[%emt 0:01:13]} Kc7 {[%emt 0:01:18]} 45. Nc5 {[%emt 0:01:01]} Bc8 {[%emt 0:00:27]} 46. f4 {[%emt 0:05:46]} f6 {[%emt 0:03:13]} 47. Ne6+ {[%emt 0:03:51]} Bxe6 {[%emt 0:02:57]} 48. Bxe6 $14 {[%emt 0:00:02] KB-KN} Nf5 {[%emt 0:02:31]} 49. Bf7 {[%emt 0:02:57]} Ne7 {[%emt 0:00:08]} 50. Ke4 {[%emt 0:03:15]} Kd6 {[%emt 0:00:10]} 51. g4 {[%emt 0:02:42]} (51. h4 $16) 51... g5 $1 $11 {[%emt 0:00:31] The position is equal.} 52. fxg5 {[%emt 0:02:16]} hxg5 {[%emt 0:00:05]} 53. Bb3 {[%emt 0:01:43]} Kc6 {[%emt 0:00:37]} 54. Bf7 {[%emt 0:01:18]} Kd6 {[%emt 0:00:04]} 55. Bb3 {[%emt 0:00:10]} Kc6 {[%emt 0:00:04]} 56. Bf7 {[%emt 0:01:15] Weighted Error Value: White=0.10 (very precise) /Black=0.07 (flawless)} 1/2-1/2